fUST/lending_fUST_20251214
["ID","MTS","AMOUNT","RATE_DAILY","PERIOD"]
[398447795,1765663396783,-159.45,0.00013545,2]
[398447796,1765663398953,-264.80546106,0.00013545,2]
[398447800,1765663406665,-230.83819133,0.00013545,2]
[398447801,1765663412334,-273.79053834,0.00013545,2]
[398447802,1765663414308,-200.04777681,0.00013545,2]
[398447803,1765663420324,-154.95,0.00013545,2]
[398447804,1765663421791,-224.24884557,0.00013545,2]
[398447805,1765663425618,-254.70336612,0.00013545,2]
[398447807,1765663431927,-240.50555585,0.00013545,2]
[398447809,1765663432073,150.0,9.391e-05,2]
[398447813,1765663439276,-184.89397798,0.00013545,2]
[398447815,1765663442505,157.19,0.000134,2]
[398447816,1765663443916,-262.29759053,0.00013545,2]
[398447817,1765663445826,-277.79422507,0.00013545,2]
[398447818,1765663452250,-188.74195818,0.00013545,2]
[398447819,1765663459379,-330.1409405,0.00013545,2]
[398447820,1765663462778,-154.95,0.000135,2]
[398447821,1765663463987,-2.24,0.000135,2]
[398447822,1765663464019,-154.29,0.000135,2]
[398447823,1765663466618,-2.9,0.000135,2]
[398447824,1765663467011,-205.93627484,0.00013545,2]
[398447828,1765663469071,-301.19734145,0.00013545,2]
[398447829,1765663471865,-287.77320986,0.00013545,2]
[398447830,1765663473840,-334.69090485,0.00013545,2]
[398447831,1765663477015,-152.27395539,0.00013545,2]
[398447832,1765663479596,-232.59398746,0.00013545,2]
[398447833,1765663481592,-153.68,0.00013545,2]
[398447834,1765663484760,-234.491105,0.00013545,2]
[398447835,1765663486899,-171.88,0.00013545,2]
[398447836,1765663488459,-234.38121794,0.00013545,2]
[398447837,1765663491283,-238.29097079,0.00013545,2]
[398447838,1765663495448,-251.25063969,0.00013545,2]
[398447839,1765663497077,-186.8670223,0.00013545,2]
[398447840,1765663499634,-300.6,0.00013545,2]
[398447846,1765663503622,-164.69065322,0.00013545,2]
[398447847,1765663506105,-203.17700439,0.00013545,2]
[398447850,1765663507672,155.87,0.000134,2]
[398447851,1765663508092,155.87,0.000134,2]
[398447852,1765663508700,-155.87,0.000135,2]
[398447853,1765663508721,-10.34,0.00013545,2]
[398447855,1765663510803,-155.87,0.000135,2]
[398447856,1765663510827,-96.86862834,0.000135,2]
[398447860,1765663517117,-59.00137166,0.000135,2]
[398447861,1765663517140,-211.63031249,0.00013522,2]
[398447862,1765663517160,-166.03868558,0.00013545,2]
[398447863,1765663518553,-236.71399754,0.00013545,2]
[398447864,1765663523786,-406.92170384,0.00013545,2]
[398447865,1765663526370,-161.88829616,0.00013545,2]
[398447870,1765663533374,-324.17488117,0.00013545,2]
[398447871,1765663535775,-369.75510181,0.00013545,2]
[398447872,1765663541028,-367.58105923,0.00013545,2]
[398447873,1765663542457,-689.620555,0.00013545,2]
[398447874,1765663550298,-156.42,0.00013545,2]
[398447875,1765663551785,1767.79869309,0.0001308,2]
[398447876,1765663554391,3142.75323216,0.0001308,2]
[398447877,1765663556670,4905.64137332,0.0001308,2]
[398447878,1765663557590,-165.92037864,0.00013545,2]
[398447879,1765663559584,150.0,9.385e-05,2]
[398447880,1765663560227,150.0,9.831e-05,2]
[398447881,1765663560628,150.0,0.00010278,2]
[398447882,1765663561020,150.0,0.00010725,2]
[398447883,1765663561415,152.57,0.00011172,2]
[398447884,1765663561802,183.08,0.00011619,2]
[398447885,1765663562195,213.6,0.00012066,2]
[398447886,1765663562254,-206.85224382,0.00013545,2]
[398447890,1765663565355,-203.81988353,0.00013545,2]
[398447891,1765663565706,244.11,0.00012513,2]
[398447892,1765663566638,274.63,0.0001296,2]
[398447893,1765663567436,305.14,0.00013407,2]
[398447894,1765663567806,-227.80245979,0.00013545,2]
[398447895,1765663569919,153.77,0.000134,2]
[398447896,1765663570228,153.77,0.000134,2]
[398447897,1765663573914,-153.77,0.000135,2]
[398447898,1765663573939,-97.41390879,0.000135,2]
[398447899,1765663577590,-56.35609121,0.000135,2]
[398447900,1765663577617,-100.17390879,0.000135,2]
[398447901,1765663579826,-53.59609121,0.000135,2]
[398447902,1765663579849,-149.66074568,0.00013545,2]
[398447903,1765663582786,-164.14,0.00013545,2]
[398447904,1765663584313,-154.95,0.00013545,2]
[398447906,1765663588601,-153.68,0.00013545,2]
[398447907,1765663590019,-378.42936084,0.00013545,2]
[398447911,1765663618142,-145.39148065,0.00013545,2]
[398447912,1765663618172,-153.77,0.000136,2]
[398447913,1765663618201,-14.55898482,0.000136,2]
[398447917,1765663626090,-201.603727,0.00013699,2]
[398447918,1765663626113,-162.52281855,0.00013699,2]
[398447919,1765663629909,150.29,0.000134,2]
[398447920,1765663630236,150.29,0.000134,2]
[398447921,1765663632821,150.0,9.365e-05,2]
[398447922,1765663633248,150.0,9.81e-05,2]
[398447923,1765663633623,-150.29,0.000135,2]
[398447924,1765663633648,-112.00775618,0.000135,2]
[398447925,1765663636461,-38.28224382,0.000135,2]
[398447926,1765663636485,-121.16775618,0.000135,2]
[398447927,1765663637094,-29.12224382,0.000135,2]
[398447928,1765663637117,-150.29,0.000135,2]
[398447929,1765663637138,-150.29,0.000136,2]
[398447930,1765663637160,-150.29,0.000136,2]
[398447931,1765663637182,-150.29,0.000136,2]
[398447932,1765663637204,-150.29,0.000136,2]
[398447933,1765663637224,-315.63984811,0.00013699,2]
[398447937,1765663688278,157.42,0.000134,2]
[398447942,1765663693285,-157.42,0.000135,2]
[398447943,1765663693310,-84.55891196,0.000135,2]
[398447944,1765663694934,157.37,0.00013417,2]
[398447945,1765663711264,-72.86108804,0.000135,2]
[398447946,1765663711290,-137.6441245,0.000135,2]
[398447964,1765663748490,157.42,0.000134,2]
[398447967,1765663753172,-157.42,0.000135,2]
[398447968,1765663753199,-27.73470162,0.000135,2]
[398447970,1765663757695,-129.68529838,0.000135,2]
[398447971,1765663757721,-24.39719388,0.000135,2]
[398447977,1765663769408,-133.02280612,0.000135,2]
[398447978,1765663769431,-157.42,0.000136,2]
[398447979,1765663769453,-157.42,0.000136,2]
[398447980,1765663769472,-275.88919214,0.00013699,2]
[398447981,1765663769491,-615.0,0.00013699,2]
[398447982,1765663769512,-157.42,0.000137,2]
[398447983,1765663769533,-157.42,0.000137,2]
[398447984,1765663769552,-367.23878091,0.00013766,2]
[398447985,1765663769576,-157.42,0.000138,2]
[398447986,1765663769596,-157.42,0.000138,2]
[398447987,1765663769616,-157.42,0.000138,2]
[398447988,1765663769636,-157.42,0.000139,2]
[398447989,1765663769656,-157.42,0.000139,2]
[398447990,1765663769675,-157.42,0.00014,2]
[398447991,1765663769695,-300.0,0.00014041,2]
[398447992,1765663769713,-604.2974015,0.00014042,2]
[398447993,1765663769732,-500.0,0.00014042,2]
[398447994,1765663769752,-500.0,0.00014042,2]
[398447995,1765663769773,-500.0,0.00014042,2]
[398447996,1765663769791,-500.38519709,0.00014042,2]
[398447997,1765663769811,-202.53311342,0.00014042,2]
[398447998,1765663769831,-300.0,0.00014043,2]
[398447999,1765663769851,-300.0,0.00014043,2]
[398448000,1765663769871,-300.0,0.00014043,2]
[398448001,1765663769892,-300.0,0.00014043,2]
[398448002,1765663769914,-300.0,0.00014043,2]
[398448003,1765663769933,-300.0,0.00014043,2]
[398448004,1765663769953,-300.0,0.00014043,2]
[398448005,1765663769973,-300.0,0.00014043,2]
[398448006,1765663769993,-300.0,0.00014043,2]
[398448007,1765663770014,-300.0,0.00014043,2]
[398448008,1765663770033,-300.0,0.00014043,2]
[398448009,1765663770053,-300.0,0.00014043,2]
[398448010,1765663770075,-300.0,0.00014043,2]
[398448011,1765663770099,-300.0,0.00014043,2]
[398448012,1765663770119,-300.0,0.00014043,2]
[398448013,1765663770142,-600.0,0.00014323,2]
[398448014,1765663770162,-500.0,0.00014365,2]
[398448015,1765663770182,-500.0,0.00014365,2]
[398448016,1765663770204,-158.77405729,0.0001449,2]
[398448017,1765663770223,-212.65945153,0.0001449,2]
[398448042,1765663802373,165.55,0.000134,2]
[398448058,1765663831727,-165.55,0.000137,2]
[398448059,1765663831737,-165.55,0.00014,2]
[398448060,1765663831748,-300.0,0.00014192,2]
[398448061,1765663831758,-300.0,0.00014247,2]
[398448062,1765663831768,-93.20733906,0.00014247,2]
[398448063,1765663831871,-530.79266094,0.00014247,2]
[398448064,1765663831882,-300.0,0.00014384,2]
[398448065,1765663831893,-73.13385159,0.0001449,2]
[398448066,1765663831905,-230.46907253,0.00014643,2]
[398448067,1765663832227,-500.0,0.00014998,2]
[398448068,1765663832237,-150.0,0.00015107,2]
[398448069,1765663832246,-152.0,0.00015244,2]
[398448070,1765663832255,-185.237,0.00015253,2]
[398448071,1765663832264,-300.0,0.00015261,2]
[398448072,1765663832273,-530.34130518,0.00015262,2]
[398448073,1765663832282,-333.0,0.00015262,2]
[398448074,1765663832292,-574.12855637,0.00015262,2]
[398448075,1765663832300,-13309.46311221,0.00015262,2]
[398448076,1765663832309,-244.7846703,0.00015262,2]
[398448077,1765663832318,-332.77409068,0.00015262,2]
[398448078,1765663832329,-970.41053518,0.00015262,2]
[398448168,1765663837830,-208.99219441,0.0001385,2]
[398448169,1765663837840,-202.75689827,0.00015262,2]
[398448170,1765663837851,-500.0,0.00015262,2]
[398448190,1765663840741,-3e-08,0.00015262,2]
[398448194,1765663842947,-767.62638103,0.00015262,2]
[398448196,1765663842958,-181.0801015,0.00015262,2]
[398448198,1765663842968,-151.0,0.00015262,2]
[398448200,1765663842978,-1528.1838761,0.00015299,2]
[398448201,1765663842987,-500.0,0.00015299,2]
[398448202,1765663842998,-500.0,0.00015299,2]
[398448203,1765663843007,-180.4884548,0.000153,2]
[398448204,1765663843016,-7579.52240679,0.000153,2]
[398448205,1765663843027,-500.0,0.00015366,2]
[398448206,1765663843037,-500.0,0.00015366,2]
[398448207,1765663843047,-209.84079624,0.00015373,3]
[398448208,1765663843057,-2100.0,0.0001538,2]
[398448209,1765663843066,-500.0,0.00015381,2]
[398448210,1765663843076,-320.44941894,0.00015381,2]
[398448211,1765663843085,-500.0,0.00015381,2]
[398448212,1765663843095,-500.0,0.00015381,2]
[398448213,1765663843105,-500.0,0.00015381,2]
[398448214,1765663843114,-500.0,0.00015381,2]
[398448215,1765663843125,-500.0,0.00015381,2]
[398448216,1765663843134,-198.44817601,0.00015381,2]
[398448217,1765663843144,-500.0,0.00015381,2]
[398448218,1765663843153,-500.0,0.00015381,2]
[398448219,1765663843163,-500.0,0.00015381,2]
[398448220,1765663843172,-500.0,0.00015382,2]
[398448221,1765663843181,-223.2254076,0.00015382,2]
[398448222,1765663843191,-160.5064102,0.00015382,2]
[398448223,1765663843200,-298.64615947,0.00015382,2]
[398448224,1765663843211,-3219.4307599,0.00015382,2]
[398448225,1765663843224,-614.94,0.00015382,2]
[398448226,1765663843234,-500.0,0.00015382,2]
[398448227,1765663843244,-500.0,0.00015382,2]
[398448228,1765663843255,-500.0,0.00015382,2]
[398448229,1765663843264,-500.0,0.00015382,2]
[398448230,1765663843274,-500.0,0.00015382,2]
[398448231,1765663843283,-500.0,0.00015382,2]
[398448232,1765663843294,-500.0,0.00015382,2]
[398448233,1765663843303,-500.76071421,0.00015382,2]
[398448234,1765663843312,-3803.93404681,0.00015383,2]
[398448235,1765663845815,-4590.79121102,0.00015383,2]
[398448236,1765663845828,-1483.80832783,0.00015383,2]
[398448266,1765663875010,351.36841821,8.47e-05,2]
[398448267,1765663875687,351.36841821,0.00010513,2]
[398448268,1765663876336,351.36841821,0.00012556,2]
[398448290,1765663955500,206.41767524,8.47e-05,2]
[398448300,1765663956174,206.41767524,0.00010439,2]
[398448301,1765663956846,206.41767524,0.00012407,2]
[398448305,1765664003532,242.40083869,8.47e-05,2]
[398448306,1765664004175,242.40083869,0.00012279,2]
[398448332,1765664343239,501.38690671,0.00013273,2]
[398448333,1765664343276,500.50069944,0.00013273,2]
[398448334,1765664343316,649.11492071,0.00013273,2]
[398448335,1765664343350,500.41017361,0.00013273,2]
[398448336,1765664344478,502.44326131,0.00013273,2]
[398448337,1765664346490,500.19978133,0.00013273,2]
[398448340,1765664348450,500.93329531,0.00013273,2]
[398448341,1765664350064,500.38282571,0.00013273,2]
[398448342,1765664350166,500.61910417,0.00013273,2]
[398448343,1765664350515,500.25188575,0.00013273,2]
[398448344,1765664350652,500.28376436,0.00013273,2]
[398448345,1765664350856,501.23453653,0.00013273,2]
[398448346,1765664351300,501.15526005,0.00013273,2]
[398448347,1765664353723,500.37278478,0.00013273,2]
[398448348,1765664354428,268.03049437,0.00013273,2]
[398448349,1765664354606,184.97307871,0.00013273,2]
[398448350,1765664355396,231.81496702,0.00013273,2]
[398448351,1765664356041,325.60524885,0.00013273,2]
[398448352,1765664356316,158.9194789,0.00013273,2]
[398448353,1765664357525,500.25869967,0.00013273,2]
[398448354,1765664357864,500.6523867,0.00013273,2]
[398448355,1765664359226,503.20623338,0.00013273,2]
[398448356,1765664360148,500.54679305,0.00013273,2]
[398448357,1765664360627,339.43104567,0.00013273,2]
[398448358,1765664360712,501.47236651,0.00013273,2]
[398448359,1765664361039,503.40286789,0.00013273,2]
[398448360,1765664361484,502.32247383,0.00013273,2]
[398448361,1765664362338,501.12210514,0.00013273,2]
[398448362,1765664363122,501.26343603,0.00013273,2]
[398448363,1765664363376,500.21549732,0.00013273,2]
[398448364,1765664363881,500.27418744,0.00013273,2]
[398448365,1765664364257,204.5605033,0.00013273,2]
[398448366,1765664365085,500.95654754,0.00013273,2]
[398448374,1765664402992,217.3639003,0.00013273,2]
[398448375,1765664403039,500.20536727,0.00013273,2]
[398448376,1765664406111,501.88402147,0.00013273,2]
[398448377,1765664406423,501.16462744,0.00013273,2]
[398448378,1765664407382,502.45161541,0.00013273,2]
[398448379,1765664411310,527.20723958,0.00013273,2]
[398448382,1765664411603,500.93564165,0.00013273,2]
[398448383,1765664411683,500.22413338,0.00013273,2]
[398448384,1765664411823,264.38242999,0.00013273,2]
[398448385,1765664412301,503.00505371,0.00013273,2]
[398448386,1765664413206,500.86279329,0.00013273,2]
[398448394,1765664466545,500.64193232,0.00013273,2]
[398448395,1765664466575,161.43167628,0.00013273,2]
[398448396,1765664466860,500.24456959,0.00013273,2]
[398448411,1765664583521,502.66977793,0.00013273,2]
[398448413,1765664584250,501.91287542,0.00013273,2]
[398448416,1765664643575,501.46570163,0.00013273,2]
[398448417,1765664643605,167.03783563,0.00013273,2]
[398448418,1765664643685,500.35696608,0.00013273,2]
[398448421,1765664703615,216.50427853,0.00013273,2]
[398448422,1765664703782,502.3110438,0.00013273,2]
[398448423,1765664703816,500.76565952,0.00013273,2]
[398448430,1765664756432,206.41783302,9.277e-05,2]
[398448432,1765664764180,500.0,0.00013273,2]
[398448433,1765664764379,501.60657041,0.00013273,2]
[398448434,1765664764717,165.110845,0.00013273,2]
[398448435,1765664764855,500.0,0.00013273,2]
[398448436,1765664765377,500.0,0.00013273,2]
[398448437,1765664765644,500.0,0.00013273,2]
[398448439,1765664770524,500.0,0.00013273,2]
[398448440,1765664770671,384.78198961,0.00013273,2]
[398448441,1765664770834,500.0,0.00013273,2]
[398448442,1765664772615,500.0,0.00013273,2]
[398448444,1765664777053,500.0,0.00013273,2]
[398448445,1765664791176,-301.4320486,0.00013673,2]
[398448446,1765664791204,-231.39316305,0.00013685,2]
[398448447,1765664791232,-300.0,0.00013698,2]
[398448448,1765664791259,-500.90910416,0.00013699,2]
[398448449,1765664791287,-500.38776688,0.00013699,2]
[398448450,1765664791314,-500.56201004,0.00013699,2]
[398448451,1765664791341,-500.2456921,0.00013699,2]
[398448452,1765664791369,-635.44007707,0.00013699,2]
[398448453,1765664791395,-500.7978021,0.00013699,2]
[398448454,1765664791421,-500.59239819,0.00013699,2]
[398448455,1765664791447,-500.42183021,0.00013699,2]
[398448456,1765664791477,-500.37918054,0.00013699,2]
[398448457,1765664791503,-500.34687253,0.00013699,2]
[398448458,1765664791528,-159.09366451,0.00013699,2]
[398448459,1765664791553,-500.33312933,0.00013699,2]
[398448460,1765664791580,-503.51294868,0.00013699,2]
[398448461,1765664791607,-500.36399291,0.00013699,2]
[398448462,1765664791634,-500.36783804,0.00013699,2]
[398448463,1765664791661,-501.0535706,0.00013699,2]
[398448464,1765664791686,-500.70419437,0.00013699,2]
[398448465,1765664791711,-163.3262848,0.00013699,2]
[398448466,1765664791738,-157.78617662,0.00013699,2]
[398448467,1765664791765,-533.74933761,0.00013699,2]
[398448468,1765664791790,-501.70519034,0.00013699,2]
[398448469,1765664791817,-500.66195523,0.00013699,2]
[398448470,1765664791845,-500.18793686,0.00013699,2]
[398448471,1765664791870,-517.74593838,0.00013699,2]
[398448472,1765664791895,-500.19608411,0.00013699,2]
[398448473,1765664791921,-500.76881636,0.00013699,2]
[398448474,1765664791946,-502.31467733,0.00013699,2]
[398448475,1765664791972,-500.1778992,0.00013699,2]
[398448476,1765664791999,-501.24825546,0.00013699,2]
[398448477,1765664792031,-500.30927363,0.00013699,2]
[398448478,1765664792058,-501.36769892,0.00013699,2]
[398448479,1765664792085,-500.39666822,0.00013699,2]
[398448480,1765664792111,-415.91655572,0.00013699,2]
[398448481,1765664792137,-500.42407717,0.00013699,2]
[398448482,1765664792165,-500.55728106,0.00013699,2]
[398448483,1765664792194,-177.71907626,0.00013699,2]
[398448484,1765664792221,-523.72730496,0.00013699,2]
[398448485,1765664792248,-500.67913754,0.00013699,2]
[398448486,1765664792276,-500.8300558,0.00013699,2]
[398448487,1765664792303,-500.70426284,0.00013699,2]
[398448488,1765664792331,-455.01219198,0.00013699,2]
[398448489,1765664792358,-500.27249419,0.00013699,2]
[398448490,1765664792386,-1000.75517333,0.00013821,2]
[398448491,1765664792415,-1000.59868399,0.00013821,2]
[398448492,1765664792443,-1002.4935863,0.00013821,2]
[398448493,1765664792469,-500.0,0.00013821,2]
[398448494,1765664792496,-500.0,0.00013821,2]
[398448495,1765664792523,-300.06128376,0.00013821,2]
[398448497,1765664823364,500.0,0.00013273,2]
[398448498,1765664823457,498.64606067,0.00013273,2]
[398448499,1765664825232,500.0,0.00013273,2]
[398448500,1765664826180,463.54083133,0.00013273,2]
[398448501,1765664829268,290.80385619,0.00013273,2]
[398448503,1765664832058,500.0,0.00013273,2]
[398448504,1765664832148,500.0,0.00013273,2]
[398448506,1765664833032,500.0,0.00013273,2]
[398448507,1765664833182,500.0,0.00013273,2]
[398448508,1765664833334,491.81043733,0.00013273,2]
[398448510,1765664834190,500.0,0.00013273,2]
[398448512,1765664834474,614.74053474,0.00013273,2]
[398448513,1765664836282,500.0,0.00013273,2]
[398448514,1765664838091,-266.81265455,0.00013697,2]
[398448515,1765664838133,-33.18734545,0.00013697,2]
[398448516,1765664838155,-351.14365834,0.00013698,2]
[398448517,1765664840925,518.00477076,0.00013273,2]
[398448522,1765664842780,500.0,0.00013273,2]
[398448527,1765664843641,500.0,0.00013273,2]
[398448528,1765664843903,500.0,0.00013273,2]
[398448529,1765664844820,500.0,0.00013273,2]
[398448530,1765664845091,-500.0,0.00013698,2]
[398448531,1765664845118,-148.85634166,0.00013698,2]
[398448532,1765664845142,-439.55989754,0.00013698,2]
[398448533,1765664845526,500.0,0.00013273,2]
[398448534,1765664845847,500.0,0.00013273,2]
[398448535,1765664845880,500.0,0.00013273,2]
[398448536,1765664846751,251.13751407,0.00013273,2]
[398448537,1765664847599,351.4693299,0.00013273,2]
[398448538,1765664847995,500.0,0.00013273,2]
[398448542,1765664849623,500.0,0.00013273,2]
[398448546,1765664889990,199.93871624,0.00013273,2]
[398448547,1765664891655,500.0,0.00013273,2]
[398448549,1765664905373,436.61239893,9.277e-05,2]
[398448550,1765664905985,436.61239893,0.00011153,2]
[398448551,1765664907034,436.61239893,0.00013028,2]
[398448580,1765664945100,-300.0,0.00013696,2]
[398448581,1765664945121,-500.0,0.00013697,2]
[398448582,1765664945139,-500.0,0.00013697,2]
[398448583,1765664945160,-500.0,0.00013697,2]
[398448584,1765664945180,-500.0,0.00013697,2]
[398448585,1765664945201,-500.0,0.00013697,2]
[398448586,1765664945222,-500.0,0.00013697,2]
[398448587,1765664945243,-500.0,0.00013697,2]
[398448588,1765664945264,-447.89750724,0.00013697,2]
[398448589,1765664945287,-500.0,0.00013697,2]
[398448590,1765664945308,-500.0,0.00013697,2]
[398448591,1765664945328,-500.0,0.00013697,2]
[398448592,1765664945349,-500.0,0.00013697,2]
[398448593,1765664945369,-500.0,0.00013697,2]
[398448594,1765664945389,-500.0,0.00013697,2]
[398448595,1765664945410,-500.0,0.00013697,2]
[398448596,1765664945433,-500.0,0.00013697,2]
[398448597,1765664945454,-500.0,0.00013697,2]
[398448598,1765664945474,-500.0,0.00013697,2]
[398448599,1765664945495,-500.0,0.00013697,2]
[398448600,1765664945515,-500.0,0.00013697,2]
[398448601,1765664945535,-500.0,0.00013697,2]
[398448602,1765664945554,-500.0,0.00013697,2]
[398448603,1765664945573,-500.0,0.00013697,2]
[398448604,1765664945594,-500.0,0.00013697,2]
[398448605,1765664945614,-500.0,0.00013697,2]
[398448606,1765664945633,-353.81840001,0.00013697,2]
[398448607,1765664945654,-650.0,0.00013697,2]
[398448608,1765664945675,-500.0,0.00013697,2]
[398448609,1765664945695,-500.0,0.00013697,2]
[398448610,1765664945716,-500.0,0.00013697,2]
[398448611,1765664945736,-500.0,0.00013697,2]
[398448612,1765664945756,-500.0,0.00013697,2]
[398448613,1765664945784,-500.0,0.00013697,2]
[398448614,1765664945804,-500.0,0.00013697,2]
[398448615,1765664945824,-154.65948881,0.00013697,2]
[398448618,1765664950526,500.0,0.00013273,2]
[398448619,1765664950738,496.65277521,0.00013273,2]
[398448620,1765664951448,1328.61,0.00012329,2]
[398448621,1765664951544,500.0,0.00013273,2]
[398448622,1765664951665,500.0,0.00013273,2]
[398448623,1765664952118,-345.34051119,0.00013697,2]
[398448624,1765664952140,-500.0,0.00013697,2]
[398448625,1765664952161,-500.0,0.00013697,2]
[398448626,1765664952182,-500.0,0.00013697,2]
[398448627,1765664952205,-500.0,0.00013697,2]
[398448628,1765664952228,-500.0,0.00013697,2]
[398448629,1765664952250,-500.0,0.00013697,2]
[398448630,1765664952271,-500.0,0.00013697,2]
[398448631,1765664952293,-500.0,0.00013697,2]
[398448632,1765664952314,-219.41323391,0.00013697,2]
[398448633,1765664952334,-500.0,0.00013697,2]
[398448634,1765664952354,-500.0,0.00013697,2]
[398448635,1765664952375,-500.0,0.00013697,2]
[398448636,1765664952395,-500.0,0.00013697,2]
[398448637,1765664952415,-500.0,0.00013697,2]
[398448638,1765664952435,-500.0,0.00013697,2]
[398448639,1765664952455,-650.0,0.00013697,2]
[398448640,1765664952474,-500.0,0.00013697,2]
[398448641,1765664952493,-500.0,0.00013697,2]
[398448642,1765664952512,-500.0,0.00013697,2]
[398448643,1765664952531,-500.0,0.00013697,2]
[398448644,1765664952551,-500.0,0.00013697,2]
[398448645,1765664952570,-500.0,0.00013697,2]
[398448646,1765664952589,-500.0,0.00013697,2]
[398448647,1765664952608,-250.0,0.00013697,2]
[398448648,1765664952626,-500.0,0.00013697,2]
[398448649,1765664952645,-1200.0,0.00013697,2]
[398448650,1765664952664,-500.0,0.00013698,2]
[398448651,1765664952685,-318.59863632,0.00013698,2]
[398448652,1765664952705,-500.0,0.00013698,2]
[398448653,1765664952724,-500.0,0.00013698,2]
[398448654,1765664952744,-500.0,0.00013698,2]
[398448655,1765664952764,-500.0,0.00013698,2]
[398448656,1765664952785,-500.0,0.00013698,2]
[398448657,1765664952803,-500.0,0.00013698,2]
[398448658,1765664952823,-500.0,0.00013698,2]
[398448659,1765664952842,-500.0,0.00013698,2]
[398448660,1765664952861,-500.0,0.00013698,2]
[398448661,1765664952881,-500.0,0.00013698,2]
[398448663,1765664952901,-238.91372321,0.00013698,2]
[398448664,1765664952923,-500.34569276,0.00013699,2]
[398448665,1765664952941,-345.77074011,0.00013699,2]
[398448666,1765664952960,-500.20763168,0.00013699,2]
[398448667,1765664952980,-173.02386457,0.00013699,2]
[398448668,1765664952999,-500.65960684,0.00013699,2]
[398448669,1765664953019,-500.6320925,0.00013699,2]
[398448670,1765664953039,-500.0,0.00013699,2]
[398448671,1765664953059,-500.77790251,0.00013699,2]
[398448672,1765664953078,-500.26863948,0.00013699,2]
[398448673,1765664953097,-500.21082262,0.00013699,2]
[398448674,1765664953117,-500.30958957,0.00013699,2]
[398448675,1765664953137,-500.52238602,0.00013699,2]
[398448676,1765664953157,-501.38282436,0.00013699,2]
[398448677,1765664953178,-303.30969186,0.00013699,2]
[398448678,1765664953197,-164.70025454,0.00013699,2]
[398448679,1765664953218,-500.0,0.00013699,2]
[398448680,1765664953238,-500.18248665,0.00013699,2]
[398448681,1765664953258,-500.67743654,0.00013699,2]
[398448682,1765664953277,-500.45109961,0.00013699,2]
[398448683,1765664953296,-160.81223571,0.00013699,2]
[398448684,1765664953316,-220.08567231,0.00013699,2]
[398448685,1765664953335,-501.69450208,0.00013699,2]
[398448686,1765664953355,-500.53684937,0.00013699,2]
[398448687,1765664953374,-500.67222143,0.00013699,2]
[398448688,1765664953394,-513.38054373,0.00013699,2]
[398448689,1765664953414,-500.60528936,0.00013699,2]
[398448690,1765664953436,-500.38306836,0.00013699,2]
[398448691,1765664953456,-500.97179278,0.00013699,2]
[398448692,1765664953475,-500.0,0.00013699,2]
[398448693,1765664953495,-500.0,0.00013699,2]
[398448694,1765664953514,-500.0,0.00013699,2]
[398448695,1765664953534,-500.0,0.00013699,2]
[398448696,1765664953553,-500.0,0.00013699,2]
[398448697,1765664953572,-500.0,0.00013699,2]
[398448698,1765664953591,-500.0,0.00013699,2]
[398448699,1765664953614,-500.0,0.00013699,2]
[398448700,1765664953633,-218.5038938,0.00013699,2]